[Event "Early-Titled-Tuesday-Blitz-April-02-2024"]
[Site "Chess.com"]
[Date "2024.04.02"]
[Round "5"]
[White "gorgeous1083"]
[Black "Ergali_Suleimen"]
[Result "1-0"]
[WhiteElo "2219"]
[BlackElo "2357"]
[TimeControl "180+1"]
[EndTime "8:57:02 PDT"]
[Termination "gorgeous1083 won by resignation"]

1. d4 {[%clk 0:03:00.9]} 1... Nf6 {[%clk 0:02:59.9]} 2. c4 {[%clk 0:03:01.5]}
2... e6 {[%clk 0:03:00.4]} 3. Nf3 {[%clk 0:03:02.1]} 3... d5 {[%clk 0:03:01]} 4.
Nc3 {[%clk 0:03:02.5]} 4... Be7 {[%clk 0:03:01.2]} 5. Bf4 {[%clk 0:03:02.4]}
5... O-O {[%clk 0:03:01.5]} 6. e3 {[%clk 0:03:02.9]} 6... c5 {[%clk 0:03:01.8]}
7. cxd5 {[%clk 0:03:00]} 7... Nxd5 {[%clk 0:03:00.7]} 8. Nxd5 {[%clk 0:02:49.5]}
8... exd5 {[%clk 0:03:01.6]} 9. Be2 {[%clk 0:02:48.8]} 9... cxd4 {[%clk
0:02:59.7]} 10. Nxd4 {[%clk 0:02:47.9]} 10... Bb4+ {[%clk 0:03:00.1]} 11. Kf1
{[%clk 0:02:46.2]} 11... Nc6 {[%clk 0:03:00.4]} 12. a3 {[%clk 0:02:40.9]} 12...
Bd6 {[%clk 0:02:53.1]} 13. Bxd6 {[%clk 0:02:38.2]} 13... Qxd6 {[%clk 0:02:54]}
14. Rc1 {[%clk 0:02:37.8]} 14... Be6 {[%clk 0:02:28.4]} 15. h4 {[%clk
0:02:35.1]} 15... Rac8 {[%clk 0:02:26.1]} 16. g3 {[%clk 0:02:34.6]} 16... Ne5
{[%clk 0:02:08.3]} 17. Kg2 {[%clk 0:02:27.3]} 17... a6 {[%clk 0:01:45.4]} 18.
Qb3 {[%clk 0:02:20.6]} 18... Qd7 {[%clk 0:01:39]} 19. Rhd1 {[%clk 0:02:07.9]}
19... Bh3+ {[%clk 0:01:32.5]} 20. Kg1 {[%clk 0:02:04.2]} 20... Bg4 {[%clk
0:01:33.4]} 21. Bxg4 {[%clk 0:01:56.9]} 21... Qxg4 {[%clk 0:01:18.7]} 22. Qxd5
{[%clk 0:01:45.7]} 22... Rxc1 {[%clk 0:01:17.2]} 23. Rxc1 {[%clk 0:01:45.2]}
23... Nd3 {[%clk 0:01:18.1]} 24. Rc7 {[%clk 0:01:13.3]} 24... Qd1+ {[%clk
0:01:06.7]} 25. Kg2 {[%clk 0:01:06.9]} 25... Qd2 {[%clk 0:00:17]} 26. Qf5 {[%clk
0:00:48.6]} 26... Ne1+ {[%clk 0:00:08.1]} 27. Kh3 {[%clk 0:00:43.8]} 27... g6
{[%clk 0:00:06]} 28. Qf6 {[%clk 0:00:38.6]} 28... Qd3 {[%clk 0:00:06.5]} 29. Nf3
{[%clk 0:00:13.5]} 29... Qf1+ {[%clk 0:00:06]} 30. Kg4 {[%clk 0:00:12.5]} 30...
Qb5 {[%clk 0:00:02.9]} 31. Ng5 {[%clk 0:00:11.2]} 31... Qe8 {[%clk 0:00:02]} 32.
h5 {[%clk 0:00:09.6]} 32... gxh5+ {[%clk 0:00:01.9]} 33. Kxh5 {[%clk 0:00:09.9]}
33... Nd3 {[%clk 0:00:01.1]} 34. Kh6 {[%clk 0:00:09.2]} 34... Qe5 {[%clk
0:00:01.9]} 35. Qxe5 {[%clk 0:00:05]} 35... Nxe5 {[%clk 0:00:02.8]} 36. Nxh7
{[%clk 0:00:04.6]} 36... Rd8 {[%clk 0:00:02.8]} 37. Nf6+ {[%clk 0:00:04.7]}
37... Kf8 {[%clk 0:00:03.5]} 38. Rxb7 {[%clk 0:00:03.9]} 38... Rd6 {[%clk
0:00:04.1]} 39. Kg5 {[%clk 0:00:03.8]} 39... Nf3+ {[%clk 0:00:02.7]} 40. Kf5
{[%clk 0:00:04]} 40... Rd2 {[%clk 0:00:01.8]} 41. Nd7+ {[%clk 0:00:03.7]} 41...
Ke7 {[%clk 0:00:01]} 42. Ne5+ {[%clk 0:00:03.2]} 42... Ke8 {[%clk 0:00:01.2]}
43. Nxf3 {[%clk 0:00:02]} 43... Rxf2 {[%clk 0:00:01.9]} 44. Ke4 {[%clk
0:00:02.3]} 44... Rc2 {[%clk 0:00:02.5]} 45. Rb6 {[%clk 0:00:01.8]} 45... Rc4+
{[%clk 0:00:02.6]} 46. Nd4 {[%clk 0:00:02]} 46... Rc7 {[%clk 0:00:03.5]} 47.
Rxa6 {[%clk 0:00:02.1]} 47... Re7+ {[%clk 0:00:04.3]} 48. Kd3 {[%clk 0:00:02]}
48... Rb7 {[%clk 0:00:05.2]} 49. b4 {[%clk 0:00:02.5]} 49... f5 {[%clk 0:00:05]}
50. Ra5 {[%clk 0:00:03.4]} 50... f4 {[%clk 0:00:05.9]} 51. exf4 {[%clk
0:00:03.7]} 51... Rg7 {[%clk 0:00:06.1]} 52. Rc5 {[%clk 0:00:04.1]} 52... Rxg3+
{[%clk 0:00:07]} 53. Kc4 {[%clk 0:00:04.5]} 53... Rxa3 {[%clk 0:00:07.7]} 54. b5
{[%clk 0:00:04.8]} 54... Kd7 {[%clk 0:00:07.9]} 55. Kd5 {[%clk 0:00:05.2]} 55...
Ra1 {[%clk 0:00:08.1]} 56. b6 {[%clk 0:00:05.4]} 56... Rb1 {[%clk 0:00:08.3]}
57. Rb5 {[%clk 0:00:05.9]} 57... Rh1 {[%clk 0:00:06.6]} 58. b7 {[%clk 0:00:06]}
58... Rh5+ {[%clk 0:00:07.4]} 59. f5 {[%clk 0:00:06.2]} 59... Rg5 {[%clk
0:00:02.7]} 60. b8=Q {[%clk 0:00:06.3]} 60... Rxf5+ {[%clk 0:00:03.6]} 61. Kc4
{[%clk 0:00:04.6]} 61... Rf6 {[%clk 0:00:02]} 62. Qb7+ {[%clk 0:00:04.4]} 62...
Ke8 {[%clk 0:00:02.4]} 63. Rc5 {[%clk 0:00:04.2]} 63... Rc6 {[%clk 0:00:01.3]}
64. Rxc6 {[%clk 0:00:03.6]} 1-0

[Event "Early-Titled-Tuesday-Blitz-April-02-2024"]
[Site "Chess.com"]
[Date "2024.04.02"]
[Round "5"]
[White "ural58"]
[Black "lamomiajunior"]
[Result "0-1"]
[WhiteElo "2465"]
[BlackElo "2695"]
[TimeControl "180+1"]
[EndTime "8:57:08 PDT"]
[Termination "lamomiajunior won by resignation"]

1. e4 {[%clk 0:03:00.9]} 1... c5 {[%clk 0:02:59.8]} 2. b3 {[%clk 0:03:00.1]}
2... Nc6 {[%clk 0:02:57.1]} 3. Bb2 {[%clk 0:02:59.8]} 3... e5 {[%clk 0:02:57.3]}
4. f4 {[%clk 0:02:58.9]} 4... exf4 {[%clk 0:02:53.6]} 5. Qf3 {[%clk 0:02:56.4]}
5... Nf6 {[%clk 0:02:38.5]} 6. Qxf4 {[%clk 0:02:54.1]} 6... Be7 {[%clk
0:02:37.9]} 7. e5 {[%clk 0:02:51.1]} 7... Nd5 {[%clk 0:02:35.7]} 8. Qe4 {[%clk
0:02:51.2]} 8... Nc7 {[%clk 0:02:34.8]} 9. Nc3 {[%clk 0:02:47]} 9... Ne6 {[%clk
0:02:26.8]} 10. Nf3 {[%clk 0:02:44]} 10... b6 {[%clk 0:02:25.5]} 11. Nd5 {[%clk
0:02:34.6]} 11... Bb7 {[%clk 0:02:25.4]} 12. Nxe7 {[%clk 0:02:33]} 12... Qxe7
{[%clk 0:02:26.3]} 13. O-O-O {[%clk 0:02:32]} 13... O-O-O {[%clk 0:02:25.7]} 14.
Qe3 {[%clk 0:02:28.9]} 14... d5 {[%clk 0:02:21.7]} 15. exd6 {[%clk 0:02:28.8]}
15... Qxd6 {[%clk 0:02:21.8]} 16. Bc4 {[%clk 0:02:23.9]} 16... Rhe8 {[%clk
0:02:19.9]} 17. Rhe1 {[%clk 0:02:23.4]} 17... Nb4 {[%clk 0:01:57.5]} 18. a3
{[%clk 0:02:13.8]} 18... Nd5 {[%clk 0:01:55.9]} 19. Qf2 {[%clk 0:02:10.7]} 19...
f6 {[%clk 0:01:54.3]} 20. Nh4 {[%clk 0:02:06.6]} 20... Qf4 {[%clk 0:01:44.8]}
21. Qxf4 {[%clk 0:02:03.2]} 21... Nexf4 {[%clk 0:01:45.7]} 22. g3 {[%clk
0:02:02.6]} 22... Ne6 {[%clk 0:01:44.1]} 23. Nf5 {[%clk 0:02:02.6]} 23... Kc7
{[%clk 0:01:41.9]} 24. g4 {[%clk 0:01:58.9]} 24... Bc6 {[%clk 0:01:30.2]} 25. a4
{[%clk 0:01:48.7]} 25... Ndf4 {[%clk 0:01:30.2]} 26. h4 {[%clk 0:01:45.7]} 26...
Bf3 {[%clk 0:01:30]} 27. Rg1 {[%clk 0:01:29.6]} 27... Bxd1 {[%clk 0:01:28.8]}
28. Kxd1 {[%clk 0:01:30.5]} 28... g6 {[%clk 0:01:17.3]} 29. Ne3 {[%clk
0:01:30.1]} 29... Nd4 {[%clk 0:01:16]} 30. Rf1 {[%clk 0:01:27.4]} 30... g5
{[%clk 0:00:54.3]} 31. hxg5 {[%clk 0:01:14.1]} 31... fxg5 {[%clk 0:00:55.2]} 32.
Rh1 {[%clk 0:01:13.4]} 32... Nf3 {[%clk 0:00:33.3]} 33. Rxh7+ {[%clk 0:01:10]}
33... Kb8 {[%clk 0:00:33.9]} 34. Kc1 {[%clk 0:00:43]} 34... Nxd2 {[%clk
0:00:29.2]} 35. Bf6 {[%clk 0:00:35.6]} 35... Nxc4 {[%clk 0:00:16.3]} 36. Nxc4
{[%clk 0:00:33.3]} 36... Rd5 {[%clk 0:00:14.5]} 37. Rg7 {[%clk 0:00:29.5]} 37...
Ne6 {[%clk 0:00:13.7]} 38. Rg6 {[%clk 0:00:24.4]} 38... Kb7 {[%clk 0:00:09]} 39.
Kb2 {[%clk 0:00:21.5]} 39... Kc7 {[%clk 0:00:08.6]} 40. Be5+ {[%clk 0:00:20.5]}
40... Kd7 {[%clk 0:00:09.1]} 41. Bc3 {[%clk 0:00:20.4]} 41... Ke7 {[%clk
0:00:08.7]} 42. Rh6 {[%clk 0:00:20]} 42... Rf8 {[%clk 0:00:07.3]} 43. Rh7+
{[%clk 0:00:19.7]} 43... Rf7 {[%clk 0:00:08]} 44. Rh8 {[%clk 0:00:20.3]} 44...
Rf2 {[%clk 0:00:06.2]} 45. Ra8 {[%clk 0:00:20]} 45... Nd4 {[%clk 0:00:04.6]} 46.
Bxd4 {[%clk 0:00:19.4]} 46... Rxd4 {[%clk 0:00:04.7]} 47. Rxa7+ {[%clk
0:00:19.8]} 47... Ke6 {[%clk 0:00:05.3]} 48. Ra8 {[%clk 0:00:19.6]} 48... Rxg4
{[%clk 0:00:05.8]} 49. Nxb6 {[%clk 0:00:19.1]} 49... Rgg2 {[%clk 0:00:05.9]} 50.
Re8+ {[%clk 0:00:19.3]} 50... Kf7 {[%clk 0:00:06.2]} 51. Re4 {[%clk 0:00:18.6]}
51... Rxc2+ {[%clk 0:00:06.4]} 52. Kb1 {[%clk 0:00:19.3]} 52... Rb2+ {[%clk
0:00:06.8]} 53. Ka1 {[%clk 0:00:19.3]} 53... Ra2+ {[%clk 0:00:06.4]} 54. Kb1
{[%clk 0:00:19]} 54... Rab2+ {[%clk 0:00:07.3]} 55. Ka1 {[%clk 0:00:18.8]} 55...
Rxb3 {[%clk 0:00:08.2]} 56. Nd7 {[%clk 0:00:17.9]} 56... Ra3+ {[%clk 0:00:07.4]}
57. Kb1 {[%clk 0:00:17.5]} 57... Rh3 {[%clk 0:00:07.8]} 58. Re1 {[%clk
0:00:17.2]} 58... Rhh2 {[%clk 0:00:06.8]} 59. Nxc5 {[%clk 0:00:16.4]} 59... Kg7
{[%clk 0:00:07.5]} 60. Ne6+ {[%clk 0:00:16.2]} 60... Kg6 {[%clk 0:00:07.5]} 61.
Nd4 {[%clk 0:00:16.3]} 61... Rb2+ {[%clk 0:00:07.8]} 62. Kc1 {[%clk 0:00:16.5]}
62... Ra2 {[%clk 0:00:08.4]} 63. Kb1 {[%clk 0:00:16.8]} 63... Rxa4 {[%clk
0:00:08.1]} 64. Re6+ {[%clk 0:00:16.2]} 64... Kf7 {[%clk 0:00:08.2]} 65. Rd6
{[%clk 0:00:15.8]} 65... Rb4+ {[%clk 0:00:07.8]} 66. Kc1 {[%clk 0:00:15.2]}
66... Rc4+ {[%clk 0:00:07]} 67. Kb1 {[%clk 0:00:15.5]} 67... Rc7 {[%clk
0:00:07.9]} 68. Nf5 {[%clk 0:00:15.4]} 68... Rb7+ {[%clk 0:00:07.3]} 69. Kc1
{[%clk 0:00:15.4]} 69... Rbb2 {[%clk 0:00:08.2]} 70. Rc6 {[%clk 0:00:14]} 70...
Rbg2 {[%clk 0:00:07.3]} 71. Kb1 {[%clk 0:00:09.9]} 71... Rg1+ {[%clk 0:00:07.1]}
72. Rc1 {[%clk 0:00:10.8]} 72... Rxc1+ {[%clk 0:00:07.6]} 73. Kxc1 {[%clk
0:00:11.3]} 73... Kf6 {[%clk 0:00:08.5]} 74. Ne3 {[%clk 0:00:10.5]} 74... Re2
{[%clk 0:00:07.3]} 75. Nd5+ {[%clk 0:00:09.7]} 75... Kf5 {[%clk 0:00:07.8]} 76.
Nc3 {[%clk 0:00:10.6]} 76... Re5 {[%clk 0:00:07.9]} 77. Kd1 {[%clk 0:00:10.9]}
77... g4 {[%clk 0:00:08.5]} 0-1

[Event "Early-Titled-Tuesday-Blitz-April-02-2024"]
[Site "Chess.com"]
[Date "2024.04.02"]
[Round "5"]
[White "GalaxyRoman"]
[Black "TitarovVasiliYouTube"]
[Result "1/2-1/2"]
[WhiteElo "2826"]
[BlackElo "2644"]
[TimeControl "180+1"]
[EndTime "8:57:19 PDT"]
[Termination "Game drawn by repetition"]

1. e4 {[%clk 0:03:00.9]} 1... c5 {[%clk 0:02:37]} 2. Nc3 {[%clk 0:02:59.1]} 2...
Nc6 {[%clk 0:02:36.5]} 3. f4 {[%clk 0:02:59.3]} 3... g6 {[%clk 0:02:35.8]} 4.
Nf3 {[%clk 0:02:59.8]} 4... Bg7 {[%clk 0:02:36.4]} 5. Bb5 {[%clk 0:03:00.5]}
5... d6 {[%clk 0:02:34.6]} 6. Bxc6+ {[%clk 0:03:00.5]} 6... bxc6 {[%clk
0:02:35.5]} 7. O-O {[%clk 0:03:00.8]} 7... Bg4 {[%clk 0:02:33.4]} 8. d3 {[%clk
0:03:00.8]} 8... e6 {[%clk 0:02:33.5]} 9. Qe1 {[%clk 0:02:58.5]} 9... Bxf3
{[%clk 0:02:33.7]} 10. Rxf3 {[%clk 0:02:58.3]} 10... Ne7 {[%clk 0:02:34.6]} 11.
Bd2 {[%clk 0:02:54]} 11... O-O {[%clk 0:02:30.9]} 12. b3 {[%clk 0:02:53.2]}
12... f5 {[%clk 0:02:23.5]} 13. Rd1 {[%clk 0:02:44.7]} 13... Qd7 {[%clk
0:02:18.7]} 14. Na4 {[%clk 0:02:39.5]} 14... Rae8 {[%clk 0:02:09.1]} 15. Bc3
{[%clk 0:02:37.1]} 15... Nc8 {[%clk 0:02:08.4]} 16. Bxg7 {[%clk 0:02:36.5]}
16... Qxg7 {[%clk 0:02:09.3]} 17. e5 {[%clk 0:02:34.4]} 17... Nb6 {[%clk
0:02:02.7]} 18. Nb2 {[%clk 0:02:09.2]} 18... Rd8 {[%clk 0:01:27.1]} 19. Rf1
{[%clk 0:01:17]} 19... g5 {[%clk 0:00:50.4]} 20. fxg5 {[%clk 0:00:45.7]} 20...
dxe5 {[%clk 0:00:41.6]} 21. Qc3 {[%clk 0:00:38.7]} 21... Nd5 {[%clk 0:00:39.3]}
22. Qxc5 {[%clk 0:00:37.5]} 22... Qxg5 {[%clk 0:00:40]} 23. Rf2 {[%clk
0:00:33.8]} 23... e4 {[%clk 0:00:30.7]} 24. Nc4 {[%clk 0:00:21.5]} 24... Nf4
{[%clk 0:00:24.3]} 25. Qe3 {[%clk 0:00:13.9]} 25... exd3 {[%clk 0:00:13.2]} 26.
cxd3 {[%clk 0:00:09.6]} 26... e5 {[%clk 0:00:12.7]} 27. Nxe5 {[%clk 0:00:09.8]}
27... Ne6 {[%clk 0:00:08.7]} 28. Qxg5+ {[%clk 0:00:09.8]} 28... Nxg5 {[%clk
0:00:09.6]} 29. Nxc6 {[%clk 0:00:10.4]} 29... Rd7 {[%clk 0:00:08.1]} 30. Ne5
{[%clk 0:00:10.2]} 30... Rd5 {[%clk 0:00:07.8]} 31. Nf3 {[%clk 0:00:10.5]} 31...
Ne6 {[%clk 0:00:07.6]} 32. g3 {[%clk 0:00:09.6]} 32... Nc5 {[%clk 0:00:07.3]}
33. Re2 {[%clk 0:00:07.4]} 33... Rxd3 {[%clk 0:00:02.3]} 34. Rxd3 {[%clk
0:00:07.7]} 34... Nxd3 {[%clk 0:00:03.2]} 35. Re7 {[%clk 0:00:08.1]} 35... Ra8
{[%clk 0:00:02.9]} 36. Nd4 {[%clk 0:00:06.8]} 36... f4 {[%clk 0:00:02.5]} 37.
Nf5 {[%clk 0:00:05.6]} 37... fxg3 {[%clk 0:00:01.7]} 38. hxg3 {[%clk 0:00:05.5]}
38... a5 {[%clk 0:00:02.4]} 39. Nh6+ {[%clk 0:00:05.7]} 39... Kh8 {[%clk
0:00:02.4]} 40. Nf7+ {[%clk 0:00:04.1]} 40... Kg8 {[%clk 0:00:02.9]} 41. Nh6+
{[%clk 0:00:04.3]} 41... Kh8 {[%clk 0:00:03.4]} 42. Rd7 {[%clk 0:00:04.3]} 42...
Nb4 {[%clk 0:00:03.3]} 43. a3 {[%clk 0:00:03.9]} 43... Na6 {[%clk 0:00:03.7]}
44. Nf7+ {[%clk 0:00:03.7]} 44... Kg8 {[%clk 0:00:03.8]} 45. Ng5 {[%clk
0:00:04.4]} 45... h6 {[%clk 0:00:03.8]} 46. Ne6 {[%clk 0:00:04.6]} 46... Rb8
{[%clk 0:00:04.1]} 47. Rg7+ {[%clk 0:00:04.9]} 47... Kh8 {[%clk 0:00:04.2]} 48.
Ra7 {[%clk 0:00:05.5]} 48... Rb6 {[%clk 0:00:03.9]} 49. Nd4 {[%clk 0:00:05.3]}
49... Nc5 {[%clk 0:00:02.4]} 50. Rxa5 {[%clk 0:00:05.3]} 50... Nxb3 {[%clk
0:00:02.9]} 51. Nxb3 {[%clk 0:00:06]} 51... Rxb3 {[%clk 0:00:03.8]} 52. Kg2
{[%clk 0:00:06.6]} 52... Kg7 {[%clk 0:00:04.3]} 53. Ra6 {[%clk 0:00:07]} 53...
Rb2+ {[%clk 0:00:04.8]} 54. Kh3 {[%clk 0:00:07.6]} 54... Ra2 {[%clk 0:00:05.7]}
55. a4 {[%clk 0:00:08]} 55... Ra3 {[%clk 0:00:05.6]} 56. a5 {[%clk 0:00:08.4]}
56... Kh7 {[%clk 0:00:02.9]} 57. Kh4 {[%clk 0:00:06]} 57... Kg7 {[%clk
0:00:01.7]} 58. g4 {[%clk 0:00:05.7]} 58... Ra2 {[%clk 0:00:02]} 59. Kg3 {[%clk
0:00:05.1]} 59... Ra4 {[%clk 0:00:02.1]} 60. Ra7+ {[%clk 0:00:04.7]} 60... Kg6
{[%clk 0:00:02.5]} 61. Ra8 {[%clk 0:00:05.2]} 61... Kg5 {[%clk 0:00:02.2]} 62.
Rg8+ {[%clk 0:00:05.3]} 62... Kf6 {[%clk 0:00:02.6]} 63. Rf8+ {[%clk 0:00:05.5]}
63... Kg5 {[%clk 0:00:01.9]} 64. Rf5+ {[%clk 0:00:06.2]} 64... Kg6 {[%clk
0:00:02.4]} 65. Kh4 {[%clk 0:00:05.7]} 65... Ra3 {[%clk 0:00:02.2]} 66. Rb5
{[%clk 0:00:05.9]} 66... Ra2 {[%clk 0:00:02.2]} 67. Rb6+ {[%clk 0:00:06.4]}
67... Kg7 {[%clk 0:00:02.3]} 68. a6 {[%clk 0:00:07.3]} 68... Ra5 {[%clk
0:00:02]} 69. Rb7+ {[%clk 0:00:07.5]} 69... Kg6 {[%clk 0:00:02.2]} 70. a7 {[%clk
0:00:08.4]} 70... Ra3 {[%clk 0:00:02.1]} 71. Rc7 {[%clk 0:00:08.1]} 71... Kf6
{[%clk 0:00:01.4]} 72. Rh7 {[%clk 0:00:08]} 72... Kg6 {[%clk 0:00:01.8]} 73. Rc7
{[%clk 0:00:08.2]} 73... Kf6 {[%clk 0:00:02.5]} 74. Rb7 {[%clk 0:00:07.1]} 74...
Kg6 {[%clk 0:00:03]} 75. Rc7 {[%clk 0:00:04.6]} 1/2-1/2

[Event "Early-Titled-Tuesday-Blitz-April-02-2024"]
[Site "Chess.com"]
[Date "2024.04.02"]
[Round "5"]
[White "Orest_Vovk"]
[Black "Heliosis11"]
[Result "1-0"]
[WhiteElo "2582"]
[BlackElo "2379"]
[TimeControl "180+1"]
[EndTime "8:57:28 PDT"]
[Termination "Orest_Vovk won by resignation"]

1. h4 {[%clk 0:02:38.1]} 1... d5 {[%clk 0:02:57.5]} 2. h5 {[%clk 0:02:38.2]}
2... h6 {[%clk 0:02:57.1]} 3. e4 {[%clk 0:02:37.7]} 3... dxe4 {[%clk 0:02:56.9]}
4. Nc3 {[%clk 0:02:38.3]} 4... Nf6 {[%clk 0:02:57.1]} 5. Qe2 {[%clk 0:02:38.4]}
5... Bg4 {[%clk 0:02:56.2]} 6. Qb5+ {[%clk 0:02:38.2]} 6... Nbd7 {[%clk
0:02:45.2]} 7. Qxb7 {[%clk 0:02:38.2]} 7... Bxh5 {[%clk 0:02:33.6]} 8. Nxe4
{[%clk 0:02:35.5]} 8... Nxe4 {[%clk 0:02:31.1]} 9. Rxh5 {[%clk 0:02:29.5]} 9...
Nd6 {[%clk 0:02:31.1]} 10. Qc6 {[%clk 0:02:27.2]} 10... g6 {[%clk 0:02:30.2]}
11. Qc3 {[%clk 0:02:13.2]} 11... Nf6 {[%clk 0:02:24.7]} 12. Qc6+ {[%clk
0:01:52.3]} 12... Nd7 {[%clk 0:02:23.4]} 13. Rd5 {[%clk 0:01:44.7]} 13... Bg7
{[%clk 0:02:20.9]} 14. Bb5 {[%clk 0:01:35.1]} 14... Rb8 {[%clk 0:02:16.3]} 15.
Qxd7+ {[%clk 0:01:32.9]} 15... Qxd7 {[%clk 0:02:16.2]} 16. Bxd7+ {[%clk
0:01:33.8]} 16... Kxd7 {[%clk 0:02:17.1]} 17. c3 {[%clk 0:01:31.6]} 17... Kc6
{[%clk 0:02:15.7]} 18. Ra5 {[%clk 0:01:31.1]} 18... Nc4 {[%clk 0:02:10.2]} 19.
Rxa7 {[%clk 0:01:25.7]} 19... Nxb2 {[%clk 0:02:10.3]} 20. Bxb2 {[%clk
0:01:24.6]} 20... Rxb2 {[%clk 0:02:11.2]} 21. Nf3 {[%clk 0:01:22.5]} 21... Rd8
{[%clk 0:02:09.6]} 22. O-O-O {[%clk 0:01:09.2]} 22... Rdb8 {[%clk 0:02:05.8]}
23. Re1 {[%clk 0:01:01.3]} 23... Rb1+ {[%clk 0:02:05.1]} 24. Kc2 {[%clk
0:01:00.4]} 24... R8b2+ {[%clk 0:02:02.4]} 25. Kd3 {[%clk 0:01:00.5]} 25... Rxe1
{[%clk 0:02:02.9]} 26. Nxe1 {[%clk 0:00:58.9]} 26... Rb1 {[%clk 0:02:03.4]} 27.
Ke2 {[%clk 0:00:55.4]} 27... f5 {[%clk 0:01:59.2]} 28. Ra8 {[%clk 0:00:53.9]}
28... Bf6 {[%clk 0:01:54.6]} 29. Nd3 {[%clk 0:00:46.5]} 29... Rg1 {[%clk
0:01:53.2]} 30. g3 {[%clk 0:00:46]} 30... Ra1 {[%clk 0:01:39.7]} 31. a4 {[%clk
0:00:40.2]} 31... Kb7 {[%clk 0:01:37.5]} 32. Rg8 {[%clk 0:00:39]} 32... g5
{[%clk 0:01:33.6]} 33. Nb4 {[%clk 0:00:26.6]} 33... Rxa4 {[%clk 0:01:31.9]} 34.
Nd5 {[%clk 0:00:25.7]} 34... Ra6 {[%clk 0:01:30.7]} 35. Rg6 {[%clk 0:00:19.8]}
35... Rd6 {[%clk 0:01:28.5]} 36. Ne3 {[%clk 0:00:12.5]} 36... f4 {[%clk
0:01:20.2]} 37. gxf4 {[%clk 0:00:12.2]} 37... gxf4 {[%clk 0:01:20.3]} 38. Nc4
{[%clk 0:00:11.8]} 38... Re6+ {[%clk 0:01:19.3]} 39. Kf3 {[%clk 0:00:12]} 39...
Kc6 {[%clk 0:01:17.2]} 40. Rxh6 {[%clk 0:00:10]} 40... Kd5 {[%clk 0:01:13.1]}
41. Nb2 {[%clk 0:00:10.1]} 41... Be5 {[%clk 0:01:05.2]} 42. Rxe6 {[%clk
0:00:08.3]} 42... Kxe6 {[%clk 0:01:06.1]} 43. Nd3 {[%clk 0:00:08]} 43... Kf5
{[%clk 0:01:05.1]} 44. Nb4 {[%clk 0:00:05.8]} 44... Bd6 {[%clk 0:01:03.9]} 45.
Nc2 {[%clk 0:00:05.1]} 45... e5 {[%clk 0:01:03.9]} 46. d3 {[%clk 0:00:05.1]}
46... c5 {[%clk 0:01:04.1]} 47. c4 {[%clk 0:00:05.3]} 47... Bc7 {[%clk
0:01:02.3]} 48. Na3 {[%clk 0:00:05.4]} 48... e4+ {[%clk 0:00:54.3]} 49. dxe4+
{[%clk 0:00:04.5]} 49... Ke5 {[%clk 0:00:54.8]} 50. Nb5 {[%clk 0:00:03.8]} 50...
Bb8 {[%clk 0:00:54.4]} 51. Ke2 {[%clk 0:00:02.2]} 51... Kxe4 {[%clk 0:00:54.4]}
52. f3+ {[%clk 0:00:03.1]} 52... Ke5 {[%clk 0:00:53.1]} 53. Kd3 {[%clk 0:00:04]}
53... Kf5 {[%clk 0:00:50]} 54. Nc3 {[%clk 0:00:03.9]} 54... Be5 {[%clk
0:00:46.2]} 55. Ne4 {[%clk 0:00:03.5]} 55... Bd4 {[%clk 0:00:46.6]} 56. Nd6+
{[%clk 0:00:03.6]} 56... Kg5 {[%clk 0:00:40.9]} 57. Ke4 {[%clk 0:00:02.6]} 57...
Be3 {[%clk 0:00:37.3]} 58. Nb5 {[%clk 0:00:02.6]} 58... Kh4 {[%clk 0:00:35.9]}
59. Nc7 {[%clk 0:00:03.5]} 59... Kg3 {[%clk 0:00:35.9]} 60. Nd5 {[%clk
0:00:03.7]} 60... Bd4 {[%clk 0:00:28.5]} 61. Ne7 {[%clk 0:00:03.8]} 61... Bb2
{[%clk 0:00:19.6]} 62. Nf5+ {[%clk 0:00:04.7]} 62... Kf2 {[%clk 0:00:18.6]} 63.
Kxf4 {[%clk 0:00:05.6]} 63... Ke2 {[%clk 0:00:16.9]} 64. Ke4 {[%clk 0:00:06.2]}
64... Kd2 {[%clk 0:00:17]} 65. Nd6 {[%clk 0:00:06.5]} 65... Bd4 {[%clk
0:00:11.7]} 66. f4 {[%clk 0:00:06.1]} 66... Kc3 {[%clk 0:00:11.5]} 67. f5 {[%clk
0:00:06.5]} 67... Kb4 {[%clk 0:00:11.6]} 68. Kd5 {[%clk 0:00:06.4]} 68... Ba1
{[%clk 0:00:08.2]} 69. Ne4 {[%clk 0:00:06.4]} 69... Bg7 {[%clk 0:00:06.1]} 70.
Nxc5 {[%clk 0:00:06]} 70... Bf8 {[%clk 0:00:05.4]} 71. Nd7 {[%clk 0:00:06.2]}
71... Bh6 {[%clk 0:00:05.8]} 72. f6 {[%clk 0:00:06.5]} 72... Ka5 {[%clk
0:00:04.6]} 73. f7 {[%clk 0:00:06.7]} 73... Ka6 {[%clk 0:00:03.9]} 74. f8=Q
{[%clk 0:00:06.2]} 74... Bxf8 {[%clk 0:00:04.6]} 75. Nxf8 {[%clk 0:00:06.5]}
75... Kb7 {[%clk 0:00:05.5]} 76. Ne6 {[%clk 0:00:07]} 76... Kc8 {[%clk
0:00:06.4]} 77. Nf4 {[%clk 0:00:07.7]} 77... Kd7 {[%clk 0:00:07.1]} 78. Nd3
{[%clk 0:00:08.6]} 78... Kc7 {[%clk 0:00:07.6]} 79. Nf2 {[%clk 0:00:09.5]} 79...
Kd7 {[%clk 0:00:08.2]} 80. Ne4 {[%clk 0:00:10.3]} 80... Kc7 {[%clk 0:00:09.1]}
81. Nd2 {[%clk 0:00:11]} 81... Kd8 {[%clk 0:00:09.7]} 82. Nb3 {[%clk 0:00:11.9]}
82... Kc7 {[%clk 0:00:10.2]} 83. Nc1 {[%clk 0:00:12.8]} 83... Kd7 {[%clk
0:00:10.8]} 84. Nd3 {[%clk 0:00:13.7]} 84... Kc7 {[%clk 0:00:11.5]} 85. c5
{[%clk 0:00:14.2]} 85... Kc8 {[%clk 0:00:11.7]} 86. c6 {[%clk 0:00:14.4]} 86...
Kc7 {[%clk 0:00:11.8]} 87. Kc5 {[%clk 0:00:14.7]} 87... Kc8 {[%clk 0:00:11.9]}
88. Kd6 {[%clk 0:00:15]} 88... Kd8 {[%clk 0:00:12.2]} 89. c7+ {[%clk 0:00:14.3]}
89... Kc8 {[%clk 0:00:13.1]} 90. Ne1 {[%clk 0:00:14.2]} 90... Kb7 {[%clk
0:00:12.7]} 91. Kd7 {[%clk 0:00:14.6]} 91... Ka7 {[%clk 0:00:13.3]} 92. c8=Q
{[%clk 0:00:14.1]} 92... Kb6 {[%clk 0:00:13.1]} 93. Qc6+ {[%clk 0:00:14.2]} 1-0